bitfinex/quotes_SOLUSD_20250607
["timestamp","ask_amount","ask_price","bid_price","bid_amount"]
[1749307883192,18.64964886,151.78,151.72,5.09402081]
[1749307883193,10.00331684,151.77,151.72,5.09402081]
[1749307883383,4.90929603,151.76,151.72,5.09402081]
[1749307883587,10.00331684,151.76,151.72,5.09402081]
[1749307883782,10.00331684,151.76,151.68,51.66779243]
[1749307883783,10.00331684,151.76,151.71,5.09402081]
[1749307884817,10.00331684,151.76,151.72,6.59108884]
[1749307885499,10.00331684,151.76,151.71,5.09402081]
[1749307885500,5.09402081,151.74,151.69,6.59239237]
[1749307885698,5.09402081,151.72,151.69,6.59239237]
[1749307885896,5.09402081,151.73,151.69,11.68641318]
[1749307886710,5.09402081,151.74,151.7,5.09402081]
[1749307888391,5.09402081,151.75,151.69,6.59239237]
[1749307888591,5.09402081,151.75,151.71,5.09402081]
[1749307888924,5.09402081,151.74,151.71,6.59133646]
[1749307889298,7.96609851,151.74,151.71,6.59133646]
[1749307890019,7.96609851,151.72,151.68,7.96609851]
[1749307890623,7.96609851,151.72,151.68,6.59265455]
[1749307891202,7.96609851,151.73,151.68,14.55875306]
[1749307892994,7.96609851,151.73,151.69,7.96609851]
[1749307893898,7.96609851,151.73,151.68,14.55875306]
[1749307894399,7.96609851,151.72,151.67,14.55927174]
[1749307894604,7.96609851,151.71,151.67,14.55927174]
[1749307894798,7.96609851,151.72,151.67,14.55927174]
[1749307894997,7.96609851,151.71,151.67,14.55927174]
[1749307896614,7.96609851,151.72,151.68,7.96609851]
[1749307896922,12.8753216,151.72,151.68,7.96609851]
[1749307897105,7.96609851,151.72,151.68,7.96609851]
[1749307897300,12.8753216,151.72,151.68,7.96609851]
[1749307897500,12.8753216,151.72,151.68,14.55859881]
[1749307897501,7.96609851,151.72,151.68,14.55859881]
[1749307897703,12.8753216,151.72,151.68,14.55859881]
[1749307897904,7.96609851,151.72,151.68,14.55859881]
[1749307898125,12.8753216,151.72,151.68,14.55859881]
[1749307898424,7.96609851,151.72,151.68,14.55859881]
[1749307898613,12.8753216,151.72,151.68,14.55859881]
[1749307898797,7.96609851,151.72,151.68,6.5925003]
[1749307900227,8.13077495,151.74,151.68,14.55859881]
[1749307900228,4.91090077,151.73,151.68,14.55859881]
[1749307900407,7.96609851,151.73,151.69,7.96609851]
[1749307900805,12.87782599,151.73,151.69,7.96609851]
[1749307901313,7.96609851,151.73,151.69,7.96609851]
[1749307901706,7.96609851,151.73,151.7,6.59195781]
[1749307902221,7.96609851,151.73,151.69,14.55835931]
[1749307902404,7.96609851,151.72,151.69,6.5922608]
[1749307906213,12.8801555,151.73,151.69,6.5922608]
[1749307906409,7.96609851,151.73,151.69,7.96609851]
[1749307908127,7.96609851,151.73,151.7,6.59195781]
[1749307911317,5.09924154,151.73,151.69,11.6914545]
[1749307912128,6.63964154,151.74,151.69,11.6914545]
[1749307912310,4.91556561,151.73,151.69,11.6914545]
[1749307912512,5.09924154,151.74,151.69,11.6914545]
[1749307912714,4.91559836,151.73,151.69,11.6914545]
[1749307913032,5.09924154,151.74,151.69,11.6914545]
[1749307913335,4.91562673,151.73,151.69,11.6914545]
[1749307913519,5.09924154,151.74,151.69,11.6914545]
[1749307913720,4.91639697,151.73,151.69,11.6914545]
[1749307913908,5.09924154,151.74,151.69,11.6914545]
[1749307914110,4.91608412,151.73,151.69,11.6914545]
[1749307914414,5.09924154,151.74,151.69,11.6914545]
[1749307914623,4.91610793,151.73,151.69,11.6914545]
[1749307914921,5.09924154,151.74,151.69,11.6914545]
[1749307915233,4.91618089,151.73,151.69,11.6914545]
[1749307915446,5.09924154,151.74,151.69,11.6914545]
[1749307915762,4.91640044,151.73,151.69,11.6914545]
[1749307915937,5.09924154,151.74,151.69,11.6914545]
[1749307916138,4.91637339,151.73,151.69,11.6914545]
[1749307916343,5.09924154,151.74,151.69,11.6914545]
[1749307916529,4.91661868,151.73,151.69,11.6914545]
[1749307916731,5.09924154,151.74,151.69,11.6914545]
[1749307917029,4.91654864,151.73,151.69,11.6914545]
[1749307917225,5.09924154,151.74,151.69,11.6914545]
[1749307917452,4.91686225,151.73,151.69,11.6914545]
[1749307917654,5.09924154,151.74,151.69,11.6914545]
[1749307917839,4.9172058,151.73,151.69,11.6914545]
[1749307918030,25.23957803,151.75,151.69,11.6914545]
[1749307918229,7.72103039,151.78,151.73,5.09924154]
[1749307918549,4.91754072,151.77,151.73,5.09924154]
[1749307918855,4.91754072,151.76,151.73,5.09924154]
[1749307919099,6.67894154,151.78,151.73,5.09924154]
[1749307919224,4.91811177,151.77,151.73,5.09924154]
[1749307919555,4.91811177,151.77,151.69,14.85261296]
[1749307919556,4.91703925,151.76,151.72,5.09924154]
[1749307919719,5.09924154,151.77,151.72,5.09924154]
[1749307920126,5.09924154,151.77,151.73,6.59065445]
[1749307920637,5.09924154,151.77,151.72,11.69018903]
[1749307920949,5.09924154,151.75,151.7,11.69077599]
[1749307921633,5.09924154,151.74,151.69,11.69146362]
[1749307922165,5.09924154,151.74,151.66,50.8164998]
[1749307922331,4.91573358,151.73,151.67,6.59326168]
[1749307922653,5.09924154,151.71,151.67,6.59326168]
[1749307923160,7.97011477,151.71,151.67,6.59326168]
[1749307924739,6.59080009,151.73,151.67,6.59326168]
[1749307924955,7.97011477,151.71,151.67,6.59326168]
[1749307926252,7.97011477,151.71,151.67,14.56337645]
[1749307926747,12.88496303,151.72,151.68,7.97011477]
[1749307926950,7.97011477,151.72,151.68,7.97011477]
[1749307927343,7.97011477,151.71,151.67,14.56337645]
[1749307930252,4.91520641,151.72,151.68,7.97011477]
[1749307930459,33.97011477,151.74,151.69,7.97011477]
[1749307930664,26.0,151.74,151.7,7.97011477]
[1749307930850,33.97011477,151.74,151.7,7.97011477]
[1749307931450,38.886305,151.74,151.7,7.97011477]
[1749307931655,33.97011477,151.74,151.7,7.97011477]
[1749307932954,33.97011477,151.74,151.7,6.59192627]
[1749307933542,7.97011477,151.73,151.7,6.59192627]
[1749307936258,7.97011477,151.73,151.69,14.56237287]
[1749307939781,14.56078239,151.73,151.69,7.97011477]
[1749307939982,19.476566,151.73,151.67,6.59326168]
[1749307940161,19.476566,151.73,151.68,7.97011477]
[1749307940363,19.47668497,151.73,151.68,7.97011477]
[1749307940683,14.56078239,151.73,151.68,7.97011477]
[1749307941074,7.97011477,151.72,151.68,7.97011477]
[1749307941276,14.56078239,151.73,151.68,14.56289846]
[1749307942486,14.56078239,151.73,151.66,8.33333333]
[1749307942487,7.97011477,151.73,151.69,7.97011477]
[1749307942879,12.88667468,151.73,151.69,7.97011477]
[1749307944465,7.97011477,151.73,151.69,7.97011477]
[1749307945290,5.09933746,151.73,151.69,5.09933746]
[1749307945783,10.01640263,151.73,151.69,5.09933746]
[1749307946095,5.09933746,151.73,151.69,5.09933746]
[1749307946290,37.68970082,151.74,151.69,11.69164388]
[1749307951382,31.09933746,151.74,151.69,11.69164388]
[1749307952186,5.09933746,151.76,151.72,5.09933746]
[1749307952491,5.09933746,151.77,151.72,11.69025926]
[1749307952691,4.92299572,151.76,151.72,11.69025926]
[1749307952999,5.09933746,151.77,151.72,11.69025926]
[1749307953200,4.92327167,151.76,151.73,5.09933746]
[1749307953387,32.67903746,151.78,151.73,5.09933746]
[1749307953591,10.02212319,151.77,151.73,5.09933746]
[1749307953900,4.92278573,151.76,151.73,5.09933746]
[1749307954198,5.09933746,151.76,151.71,11.69069039]
[1749307954794,5.09933746,151.76,151.7,5.09933746]
[1749307954795,5.09933746,151.75,151.7,5.09933746]
[1749307954981,5.09933746,151.75,151.7,11.69128446]
[1749307956889,5.09933746,151.75,151.66,51.27985337]
[1749307956890,5.09933746,151.75,151.71,5.09933746]
[1749307958098,5.09933746,151.76,151.71,5.09933746]
[1749307958803,10.02038674,151.76,151.71,11.69053401]
[1749307959184,10.02038674,151.76,151.72,5.09933746]
[1749307959384,10.02001294,151.76,151.72,5.09933746]
[1749307961393,10.02001294,151.76,151.72,11.6904228]
[1749307961601,5.09933746,151.76,151.72,11.6904228]
[1749307961908,4.92131489,151.76,151.72,11.6904228]
[1749307962096,6.58909365,151.77,151.73,5.09933746]
[1749307962301,34.16835693,151.78,151.74,5.09933746]
[1749307962497,4.921073,151.77,151.75,5.09933746]
[1749307962709,4.921073,151.78,151.76,5.09933746]
[1749307963010,4.921073,151.79,151.76,5.09933746]
[1749307963215,32.39579925,151.8,151.77,7.9589635]
[1749307963504,27.47473427,151.8,151.77,7.9589635]
[1749307963710,32.39579925,151.8,151.77,7.9589635]
[1749307964007,27.47473427,151.8,151.77,7.9589635]
[1749307964801,42.02136172,151.8,151.76,7.9589635]
[1749307964998,46.93930258,151.8,151.76,7.9589635]
[1749307965311,42.02136172,151.8,151.76,7.9589635]
[1749307965916,46.93930258,151.8,151.76,7.9589635]
[1749307966211,42.02136172,151.8,151.75,7.9589635]
[1749307967584,7.9589635,151.79,151.75,7.9589635]
[1749307967914,7.9589635,151.78,151.74,7.9589635]
[1749307968905,6.58891744,151.77,151.74,7.9589635]
[1749307969521,6.58891744,151.77,151.73,7.9589635]
[1749307969892,14.54788094,151.77,151.73,7.9589635]
[1749307972702,7.9589635,151.77,151.73,7.9589635]
[1749307973221,14.54763011,151.78,151.73,7.9589635]
[1749307974496,14.54763011,151.78,151.73,14.54948268]
[1749307976543,19.46557097,151.78,151.73,14.54948268]
[1749307976745,14.54763011,151.78,151.74,7.9589635]
[1749307976913,19.46557097,151.78,151.74,7.9589635]
[1749307977107,14.54763011,151.78,151.74,7.9589635]
[1749307977446,19.46557097,151.78,151.74,7.9589635]
[1749307977736,14.54763011,151.78,151.74,7.9589635]
[1749307978038,19.46557097,151.78,151.74,7.9589635]
[1749307978218,14.54763011,151.78,151.74,7.9589635]
[1749307978418,19.46557097,151.78,151.74,7.9589635]
[1749307978635,14.54763011,151.78,151.74,7.9589635]
[1749307981243,14.54763011,151.78,151.73,14.54951587]
[1749307981747,7.9589635,151.78,151.73,14.54951587]
[1749307983231,5.09635354,151.78,151.73,11.68690591]
[1749307986634,11.68494529,151.78,151.73,11.68690591]
[1749307986861,11.68494529,151.78,151.74,5.09635354]
[1749307987233,11.68494529,151.78,151.73,11.68690591]
[1749307988346,5.09635354,151.77,151.73,5.09635354]
[1749307989635,5.09635354,151.77,151.73,11.68693423]
[1749307991658,5.09635354,151.78,151.73,11.68693423]
[1749307991836,10.01853699,151.78,151.73,11.68693423]
[1749307992737,16.60727368,151.78,151.73,11.68693423]
[1749307993049,11.68509023,151.78,151.73,11.68693423]
[1749307995232,4.92469127,151.77,151.73,11.68693423]
[1749307995432,11.68509023,151.78,151.73,11.68693423]
[1749307995657,4.9258843,151.77,151.73,11.68693423]
[1749307995866,11.68509023,151.78,151.73,11.68693423]
[1749307996170,4.92601481,151.77,151.73,11.68693423]
[1749307996468,11.68509023,151.78,151.73,11.68693423]
[1749307996660,4.92698823,151.77,151.73,11.68693423]
[1749307996848,11.68509023,151.78,151.73,11.68693423]
[1749307997150,4.92711377,151.77,151.73,11.68693423]
[1749307997450,11.68509023,151.78,151.73,11.68693423]
[1749307997658,10.02393732,151.77,151.72,5.09635354]
[1749307997967,5.09635354,151.77,151.72,5.09635354]
[1749307998647,11.6852885,151.77,151.72,11.68725935]
[1749307999038,11.6852885,151.77,151.72,5.09635354]
[1749307999239,11.6852885,151.77,151.72,11.68741898]
[1749307999660,4.92699583,151.76,151.72,11.68741898]
[1749307999840,11.6852885,151.77,151.72,11.68741898]
[1749308000039,4.92719035,151.76,151.72,11.68741898]
[1749308000240,11.6852885,151.77,151.72,11.68741898]
[1749308000448,4.92769708,151.76,151.72,11.68741898]
[1749308000647,5.09635354,151.77,151.73,5.09635354]
[1749308001857,5.09635354,151.77,151.73,11.68689898]
[1749308004972,53.47473427,151.8,151.73,11.68689898]
[1749308004973,5.09635354,151.79,151.74,5.09635354]
[1749308005146,4.92780698,151.78,151.74,5.09635354]
[1749308005346,5.09635354,151.79,151.74,5.09635354]
[1749308005567,4.92860886,151.78,151.74,5.09635354]
[1749308005761,5.09635354,151.79,151.74,5.09635354]
[1749308005952,5.09635354,151.79,151.75,6.58978583]
[1749308006151,58.57108781,151.8,151.75,11.68613937]
[1749308006367,4.92900764,151.79,151.75,11.68613937]
[1749308006565,58.57108781,151.8,151.75,11.68613937]
[1749308006861,4.92861958,151.79,151.75,11.68613937]
[1749308007044,58.57108781,151.8,151.75,11.68613937]
[1749308007238,4.9286645,151.79,151.76,5.09635354]
[1749308007541,27.47473427,151.8,151.76,5.09635354]
[1749308007955,27.47473427,151.8,151.76,11.68533062]
[1749308009189,27.47473427,151.8,151.77,5.09635354]
[1749308010254,27.47473427,151.8,151.77,11.68522023]
[1749308010761,27.47473427,151.8,151.78,5.09635354]
[1749308013161,34.0624869,151.8,151.78,5.09635354]
[1749308013677,34.0624869,151.8,151.77,5.09635354]
[1749308013861,27.47473427,151.8,151.77,5.09635354]
[1749308014562,34.06239579,151.8,151.76,26.0]
[1749308014879,34.06239579,151.8,151.77,5.09635354]
[1749308015055,27.47473427,151.8,151.77,5.09635354]
[1749308016268,34.06236506,151.8,151.77,5.09635354]
[1749308017653,5.09635354,151.78,151.72,1.5284]
[1749308017873,5.09635354,151.78,151.74,5.09635354]
[1749308018183,10.01315378,151.78,151.74,5.09635354]
[1749308018478,5.09635354,151.78,151.74,5.09635354]
[1749308018854,11.68527013,151.78,151.74,5.09635354]
[1749308019185,16.60189299,151.78,151.74,5.09635354]
[1749308019361,11.68527013,151.78,151.74,5.09635354]
[1749308019561,16.60189299,151.78,151.74,5.09635354]
[1749308019775,11.68527013,151.78,151.73,5.09635354]
[1749308020393,5.09635354,151.77,151.73,5.09635354]
[1749308022773,11.68540139,151.77,151.72,5.09635354]
[1749308023266,16.60158856,151.77,151.72,5.09635354]
[1749308023474,5.09635354,151.76,151.72,5.09635354]
[1749308023986,6.58904785,151.77,151.72,11.68740019]
[1749308023987,11.68540139,151.77,151.72,11.68740019]
[1749308025280,10.01159442,151.76,151.71,5.09635354]
[1749308025486,5.09635354,151.76,151.71,5.09635354]
[1749308026581,5.09635354,151.75,151.71,5.09635354]
[1749308028404,5.09635354,151.75,151.71,11.68769494]
[1749308031091,5.09635354,151.75,151.71,6.5913414]
[1749308031289,5.09635354,151.76,151.71,11.68769494]
[1749308035187,5.09635354,151.76,151.72,5.09635354]
[1749308036283,5.09635354,151.76,151.72,6.59106891]
[1749308036888,5.09635354,151.75,151.71,6.59143957]
[1749308037986,5.09635354,151.74,151.7,37.68820883]
[1749308038188,5.09635354,151.73,151.69,5.09635354]
[1749308038494,5.09635354,151.73,151.68,11.68918054]
[1749308039006,5.09635354,151.73,151.68,6.592827]
[1749308039190,5.09635354,151.72,151.68,11.68918054]
[1749308039392,5.09635354,151.72,151.68,6.592827]
[1749308040212,5.09635354,151.72,151.68,11.68918054]
[1749308040404,5.09635354,151.73,151.68,11.68918054]
[1749308041514,6.59038414,151.74,151.68,11.68918054]
[1749308041515,5.09635354,151.72,151.68,11.68918054]
[1749308048116,5.09635354,151.73,151.68,11.68918054]
[1749308049908,5.09635354,151.73,151.67,6.59326168]
[1749308050212,5.09635354,151.73,151.68,5.09635354]
[1749308053514,5.09635354,151.73,151.69,6.59239237]
[1749308055509,5.09635354,151.72,151.68,11.68901298]
[1749308056394,5.09635354,151.72,151.68,6.59265944]
[1749308062127,11.68746498,151.72,151.67,11.6894367]
[1749308062532,5.09635354,151.7,151.66,8.33333333]
[1749308062717,5.09635354,151.7,151.66,14.92699178]
[1749308063033,5.09635354,151.7,151.66,20.02334532]
[1749308063534,5.09635354,151.71,151.66,20.02334532]
[1749308064721,5.09635354,151.71,151.66,14.92699178]
[1749308064908,5.09635354,151.71,151.66,20.02334532]
[1749308067032,5.09635354,151.71,151.67,5.09635354]
[1749308070127,11.68745686,151.72,151.66,14.92699178]
[1749308070426,11.68745686,151.72,151.67,11.6893541]
[1749308071137,5.09635354,151.72,151.67,11.6893541]
[1749308072310,5.09635354,151.7,151.67,6.59300056]
[1749308072516,5.09635354,151.7,151.66,14.92694467]
[1749308072742,5.09635354,151.71,151.66,20.02329821]
[1749308073241,5.09635354,151.7,151.66,8.33333333]
[1749308073742,5.09635354,151.7,151.66,14.92691926]
[1749308074118,10.00401898,151.71,151.66,20.0232728]
[1749308074340,16.59564834,151.71,151.66,20.0232728]
[1749308074638,5.09635354,151.71,151.67,5.09635354]
[1749308074821,25.23997321,151.74,151.67,5.09635354]
[1749308075027,10.00972513,151.73,151.69,5.09635354]
[1749308076341,10.00972513,151.73,151.69,11.68868748]
[1749308077334,10.00972513,151.73,151.69,5.09635354]
[1749308077538,5.09635354,151.73,151.68,5.09635354]
[1749308077733,10.01255742,151.73,151.68,5.09635354]
[1749308077929,5.09635354,151.72,151.68,5.09635354]
[1749308078325,5.09635354,151.71,151.66,20.02324946]
[1749308078844,5.09635354,151.72,151.68,5.09635354]
[1749308079946,5.09635354,151.72,151.68,11.68917317]
[1749308080822,10.0151641,151.72,151.68,11.68917317]
[1749308081349,4.91878111,151.72,151.68,11.68917317]
[1749308081542,5.09635354,151.73,151.68,11.68917317]
[1749308087242,5.09635354,151.72,151.68,11.68917317]
[1749308090040,4.92080738,151.73,151.68,11.68917317]
[1749308090239,5.09635354,151.73,151.68,11.68917317]
[1749308093241,25.23987483,151.74,151.68,11.68917317]
[1749308093242,5.09635354,151.74,151.69,5.09635354]
[1749308093553,4.92090719,151.73,151.69,5.09635354]
[1749308093753,5.09635354,151.74,151.69,5.09635354]
[1749308094058,4.92095369,151.73,151.69,5.09635354]
[1749308094233,5.09635354,151.74,151.69,5.09635354]
[1749308094434,4.92095369,151.73,151.69,5.09635354]
[1749308094642,5.09635354,151.74,151.69,5.09635354]
[1749308095137,5.09635354,151.74,151.7,6.59195781]
[1749308095654,5.09635354,151.74,151.7,11.68831135]
[1749308097758,32.62335354,151.75,151.7,11.68831135]
[1749308098062,4.92059727,151.74,151.7,11.68831135]
[1749308098233,32.62335354,151.75,151.7,11.68831135]
[1749308098534,4.92058101,151.74,151.7,11.68831135]
[1749308098859,32.62335354,151.75,151.7,11.68831135]
[1749308099042,4.92025093,151.74,151.7,11.68831135]
[1749308099265,32.62335354,151.75,151.7,11.68831135]
[1749308099446,4.92030331,151.74,151.7,11.68831135]
[1749308099746,31.09635354,151.75,151.71,5.09635354]
[1749308100152,26.0,151.75,151.71,5.09635354]
[1749308100530,5.09635354,151.76,151.72,5.09635354]
[1749308100731,153.59635354,151.77,151.72,5.09635354]
[1749308101030,4.92035309,151.76,151.74,5.09635354]
[1749308101245,33.60931607,151.8,151.7,55.14795233]
[1749308101246,4.92035309,151.79,151.75,5.09635354]
[1749308101448,27.47473427,151.8,151.77,5.09635354]
[1749308101654,4.9165197,151.81,151.79,5.09635354]
[1749308101862,4.9165805,151.82,151.79,5.09635354]
[1749308102137,4.91688503,151.84,151.8,5.09635354]
[1749308102436,5.09635354,151.84,151.79,5.09635354]
[1749308102856,5.09635354,151.84,151.8,5.09635354]
[1749308104557,11.68226834,151.84,151.8,5.09635354]
[1749308105060,5.09635354,151.84,151.8,5.09635354]
[1749308105251,6.58588046,151.84,151.81,5.09635354]
[1749308105561,11.682234,151.84,151.8,5.09635354]
[1749308107448,6.58544616,151.85,151.81,5.09635354]
[1749308107647,11.6817997,151.85,151.81,5.09635354]
[1749308110754,6.58544616,151.85,151.81,5.09635354]
[1749308111268,6.58544616,151.85,151.78,6.58848333]
[1749308111440,6.63255354,151.87,151.83,5.09635354]
[1749308111645,5.09635354,151.88,151.83,5.09635354]
[1749308111969,6.58465811,151.87,151.83,5.09635354]
[1749308112148,6.5838523,151.89,151.85,5.09635354]
[1749308113172,6.5838523,151.89,151.86,7.9503707]
[1749308113667,6.58329117,151.9,151.86,7.9503707]
[1749308114566,14.53366187,151.9,151.86,7.9503707]
[1749308116666,6.58329117,151.9,151.86,7.9503707]
[1749308118370,14.53366187,151.9,151.86,7.9503707]
[1749308122357,14.53366187,151.9,151.83,6.58625415]
[1749308122675,14.53366187,151.9,151.85,7.9503707]
[1749308122876,7.9503707,151.89,151.85,7.9503707]
[1749308123064,7.9503707,151.89,151.82,8.13393372]
[1749308123065,7.9503707,151.89,151.84,7.9503707]
[1749308123261,23.04148735,151.9,151.83,7.9503707]
[1749308123567,14.53538321,151.86,151.82,7.9503707]
[1749308123758,14.53538321,151.86,151.81,6.628]
[1749308123958,14.53538321,151.86,151.82,7.9503707]
[1749308127386,14.53538321,151.86,151.81,6.628]
[1749308127387,6.58501251,151.86,151.83,7.9503707]
[1749308131171,7.9503707,151.86,151.82,7.9503707]
[1749308133194,14.53559732,151.86,151.82,7.9503707]
[1749308133703,6.58522662,151.86,151.82,7.9503707]
[1749308133989,14.53559732,151.86,151.82,7.9503707]
[1749308134384,6.58522662,151.86,151.82,7.9503707]
[1749308134694,14.53559732,151.86,151.82,7.9503707]
[1749308135203,11.67613674,151.86,151.82,5.09091012]
[1749308136677,6.58522662,151.86,151.82,5.09091012]
[1749308138177,11.67563198,151.87,151.82,11.67764071]
[1749308138378,5.09091012,151.86,151.8,6.58761528]
[1749308138580,11.67563198,151.87,151.82,5.09091012]
[1749308138878,5.09091012,151.87,151.83,5.09091012]
[1749308140567,5.09091012,151.87,151.83,11.67712311]
[1749308140771,11.67505549,151.88,151.84,5.09091012]
[1749308142400,11.67505549,151.88,151.83,5.09091012]
[1749308142583,6.58414537,151.88,151.83,5.09091012]
[1749308142910,5.09091012,151.88,151.84,5.09091012]
[1749308145592,4.91038209,151.9,151.85,5.09091012]
[1749308145890,10.0011896,151.89,151.85,5.09091012]
[1749308146096,5.09091012,151.89,151.85,5.09091012]
[1749308146280,10.0011896,151.89,151.85,5.09091012]
[1749308146480,5.09091012,151.89,151.85,5.09091012]
[1749308146702,4.91223913,151.89,151.85,5.09091012]
[1749308146999,11.67467084,151.89,151.84,5.09091012]
[1749308148777,16.58744723,151.89,151.84,5.09091012]
[1749308149100,11.67467084,151.89,151.84,5.09091012]
[1749308149305,16.58744723,151.89,151.84,5.09091012]
[1749308149602,11.67467084,151.89,151.84,5.09091012]
[1749308149804,16.58744723,151.89,151.84,5.09091012]
[1749308150102,11.67467084,151.89,151.84,5.09091012]
[1749308150280,16.58744723,151.89,151.84,5.09091012]
[1749308150483,11.67467084,151.89,151.84,5.09091012]
[1749308150683,11.67467084,151.89,151.84,11.67677862]
[1749308152009,16.58911302,151.89,151.84,11.67677862]
[1749308152306,11.67467084,151.89,151.84,11.67677862]
[1749308152482,16.58911302,151.89,151.84,11.67677862]
[1749308152780,11.67467084,151.89,151.84,11.67677862]
[1749308152976,16.58911302,151.89,151.84,11.67677862]
[1749308153176,11.49790178,151.9,151.85,5.09091012]
[1749308153379,5.09091012,151.9,151.85,5.09091012]
[1749308153790,5.09091012,151.89,151.84,5.09091012]
[1749308154001,10.00666128,151.89,151.84,5.09091012]
[1749308154505,5.09091012,151.89,151.84,5.09091012]
[1749308155289,6.58414537,151.88,151.84,5.09091012]
[1749308155490,16.59179202,151.88,151.83,5.09091012]
[1749308155693,11.67505549,151.88,151.83,5.09091012]
[1749308156080,16.59179202,151.88,151.83,5.09091012]
[1749308156279,11.67505549,151.88,151.83,5.09091012]
[1749308156793,11.67505549,151.88,151.83,11.67720937]
[1749308158206,11.67505549,151.88,151.83,5.09091012]
[1749308158582,18.64964886,151.85,151.78,1.565]
[1749308158802,5.09091012,151.86,151.79,5.09091012]
[1749308158803,10.00710992,151.84,151.79,5.09091012]
[1749308159006,10.00723641,151.85,151.8,5.09091012]
[1749308159324,5.09091012,151.85,151.8,5.09091012]
[1749308159689,5.09091012,151.85,151.81,5.09091012]
[1749308160794,11.6764563,151.85,151.8,11.67841641]
[1749308164304,6.58518177,151.86,151.8,11.67841641]
[1749308164500,5.09091012,151.86,151.82,5.09091012]
[1749308164695,5.09091012,151.86,151.8,6.58750629]
[1749308164903,5.09091012,151.86,151.82,5.09091012]
[1749308165209,5.09091012,151.85,151.81,5.09091012]
[1749308165594,5.09091012,151.85,151.81,11.67790281]
[1749308166591,5.09091012,151.85,151.81,5.09091012]
[1749308166788,5.09091012,151.84,151.8,5.09091012]
[1749308166994,5.09091012,151.84,151.79,11.6789157]
[1749308167195,5.09091012,151.83,151.78,11.67922372]
[1749308167824,16.59299567,151.83,151.78,11.67922372]
[1749308168030,11.67742477,151.83,151.78,11.67922372]
[1749308168202,11.67742477,151.83,151.79,5.09091012]
[1749308171438,5.09091012,151.83,151.79,11.67882313]
[1749308171818,11.67682597,151.84,151.8,5.09091012]
[1749308172199,5.09091012,151.84,151.8,5.09091012]
[1749308172403,4.91348726,151.85,151.81,5.09091012]
[1749308172734,16.58948867,151.86,151.81,5.09091012]
[1749308172915,11.67600141,151.86,151.81,11.6780016]
[1749308173105,11.67600141,151.86,151.81,5.09091012]
[1749308173429,10.0045282,151.85,151.81,5.09091012]
[1749308173605,10.0045282,151.85,151.8,11.6783903]
[1749308173802,5.09091012,151.85,151.8,11.6783903]
[1749308175129,11.67663318,151.85,151.8,11.6783903]
[1749308176710,16.58879747,151.85,151.8,11.6783903]
[1749308177014,11.67663318,151.85,151.8,11.6783903]
[1749308177214,16.58879747,151.85,151.8,11.6783903]
[1749308177418,11.67663318,151.85,151.8,11.6783903]
[1749308177722,16.58879747,151.85,151.8,11.6783903]
[1749308177921,11.67663318,151.85,151.8,11.6783903]
[1749308178105,16.58879747,151.85,151.8,11.6783903]
[1749308178308,6.58572306,151.85,151.8,11.6783903]
[1749308178510,16.58879747,151.85,151.8,11.6783903]
[1749308178712,11.67663318,151.85,151.8,11.6783903]
[1749308179823,16.58857333,151.85,151.8,11.6783903]
[1749308180022,11.67663318,151.85,151.8,11.6783903]
[1749308180327,5.09091012,151.82,151.77,26.0]
[1749308180517,5.09091012,151.83,151.78,5.09091012]
[1749308181023,5.09091012,151.83,151.77,26.0]
[1749308181212,5.09091012,151.81,151.76,5.09091012]
[1749308181644,5.09091012,151.8,151.75,11.68056016]
[1749308182340,11.67874012,151.8,151.75,5.09091012]
[1749308182931,11.67874012,151.8,151.74,8.13320182]
[1749308183238,11.67874012,151.8,151.75,5.09091012]
[1749308184434,5.09091012,151.8,151.75,11.68056196]
[1749308184635,5.09091012,151.81,151.76,5.09091012]
[1749308185333,11.67817813,151.81,151.76,5.09091012]
[1749308186230,6.58692012,151.82,151.76,11.68017945]
[1749308186739,5.09091012,151.81,151.76,11.68017945]
[1749308195648,5.09091012,151.81,151.77,5.09091012]
[1749308197225,18.64964886,151.83,151.77,5.09091012]
[1749308197425,5.09091012,151.81,151.77,5.09091012]
[1749308197640,5.09091012,151.81,151.78,6.58848333]
[1749308200332,5.09091012,151.8,151.77,6.58882786]
[1749308201358,5.09091012,151.8,151.76,6.5893516]
[1749308202930,5.09091012,151.8,151.75,6.58973845]
[1749308203131,5.09091012,151.8,151.75,11.68064857]
[1749308204049,5.09091012,151.81,151.76,5.09091012]
[1749308204441,5.09091012,151.8,151.76,6.58898249]
[1749308205547,5.09091012,151.8,151.75,11.68057488]
[1749308209967,5.09091012,151.8,151.75,6.58966476]
[1749308210266,5.09091012,151.8,151.75,11.68057488]
[1749308210630,5.09091012,151.8,151.75,6.58966476]
[1749308210855,10.00371655,151.81,151.76,11.67983818]
[1749308212366,10.00546298,151.81,151.76,11.67983818]
[1749308213038,5.09091012,151.81,151.76,11.67983818]
[1749308213357,8.15088946,151.82,151.76,11.67983818]
[1749308213561,10.00566712,151.81,151.76,11.67983818]
[1749308213747,5.09091012,151.81,151.76,11.67983818]
[1749308213942,5.09091012,151.81,151.76,6.58892806]
[1749308214140,5.09091012,151.81,151.76,11.67983818]
[1749308214857,10.00573311,151.81,151.76,11.67983818]
[1749308215061,5.09091012,151.81,151.76,11.67983818]
[1749308216565,1.564,151.82,151.76,11.67983818]